bitfinex-derivatives/quotes_ETHF0:USTF0_20240829
["timestamp","ask_amount","ask_price","bid_price","bid_amount"]
[1724899683745,0.3892,2530.6,2530.4,3.2078]
[1724899684557,0.39508,2530.5,2530.3,0.00592757]
[1724899685558,1.17126,2530.6,2530.3,0.00592757]
[1724899685847,0.3892,2530.6,2530.3,0.00592757]
[1724899688246,3.2078,2530.7,2530.5,0.39507]
[1724899688545,3.2078,2530.7,2530.6,0.3782]
[1724899688749,3.2078,2530.7,2530.4,0.39508]
[1724899689254,3.2078,2530.7,2530.3,0.40102757]
[1724899689651,3.2078,2530.7,2530.3,0.00592757]
[1724899689854,3.60285,2530.7,2530.3,0.00592757]
[1724899690055,0.39506,2530.6,2530.3,0.00592757]
[1724899690352,3.60286,2530.7,2530.3,0.00592757]
[1724899690756,3.2078,2530.7,2530.3,0.40103757]
[1724899692056,3.2078,2530.7,2530.3,0.00592757]
[1724899692265,3.5948,2531.0,2530.5,0.39507]
[1724899692449,0.39502,2530.9,2530.5,0.39507]
[1724899692644,3.5948,2531.0,2530.4,3.2078]
[1724899692851,7.0148,2531.0,2530.4,3.2078]
[1724899693150,0.98754,2530.9,2530.4,3.2078]
[1724899693345,0.39505,2530.7,2530.4,3.2078]
[1724899693550,7.0148,2531.0,2530.4,3.2078]
[1724899693758,0.39503,2530.8,2530.4,3.2078]
[1724899693955,0.782,2531.0,2530.6,0.39506]
[1724899694159,0.387,2531.0,2530.6,0.39506]
[1724899695060,0.782,2531.0,2530.6,0.39506]
[1724899695256,0.387,2531.0,2530.7,3.60283]
[1724899695455,0.369,2531.1,2530.8,0.39503]
[1724899695654,0.369,2531.1,2530.8,0.75683]
[1724899695848,0.369,2531.1,2530.9,0.39501]
[1724899696357,0.369,2531.1,2530.8,0.75682]
[1724899696561,0.369,2531.1,2530.8,0.3618]
[1724899696952,0.369,2531.1,2530.8,0.75683]
[1724899697153,0.369,2531.1,2530.8,0.3618]
[1724899697559,0.369,2531.1,2530.8,0.75683]
[1724899698655,0.369,2531.1,2530.7,3.60284]
[1724899699563,0.76398,2531.1,2530.7,3.60284]
[1724899699760,0.395,2531.0,2530.7,3.2078]
[1724899700357,0.76399,2531.1,2530.7,3.2078]
[1724899700559,0.76399,2531.1,2530.7,3.60284]
[1724899700769,0.369,2531.1,2530.7,3.60284]
[1724899701262,0.3609,2531.5,2531.0,3.2078]
[1724899701453,3.2078,2531.6,2531.0,3.2078]
[1724899701454,0.76219,2531.8,2531.3,0.39494]
[1724899701658,0.3673,2531.8,2531.4,0.39493]
[1724899701868,0.3673,2531.8,2531.5,0.39491]
[1724899702365,0.3673,2531.8,2531.3,3.2078]
[1724899702858,0.76218,2531.8,2531.4,0.39493]
[1724899703059,0.3673,2531.8,2531.3,3.2078]
[1724899703365,0.39497,2531.2,2531.0,3.2078]
[1724899703665,0.3552,2531.1,2531.0,3.2078]
[1724899703871,0.7131,2531.1,2531.0,3.2078]
[1724899704574,4.6643,2531.1,2531.0,3.2078]
[1724899704757,5.05928,2531.1,2531.0,3.2078]
[1724899705263,0.7131,2531.1,2531.0,3.2078]
[1724899709762,0.3552,2531.1,2531.0,3.2078]
[1724899711971,0.3697,2531.4,2531.2,0.39496]
[1724899712166,3.5742,2531.6,2531.2,0.39496]
[1724899712370,3.948,2531.6,2531.0,3.9394]
[1724899712675,0.39494,2531.4,2531.0,3.9394]
[1724899712867,0.39494,2531.4,2531.0,4.3344]
[1724899713064,3.948,2531.6,2531.0,4.3344]
[1724899713374,4.34292,2531.6,2531.1,0.39498]
[1724899713969,1.13512,2531.6,2531.1,3.60278]
[1724899714470,0.7402,2531.6,2531.2,0.39496]
[1724899714669,0.3664,2531.6,2531.4,3.2078]
[1724899715470,0.3664,2531.6,2531.4,3.98923]
[1724899715667,0.3664,2531.6,2531.4,3.5943]
[1724899717975,0.00592757,2531.7,2531.5,0.39491]
[1724899718274,0.00592757,2531.7,2531.4,3.98922]
[1724899719169,0.39491,2531.6,2531.4,3.2078]
[1724899720269,0.00592757,2531.7,2531.4,3.2078]
[1724899720270,0.40082757,2531.7,2531.4,3.2078]
[1724899720476,0.00592757,2531.7,2531.4,3.2078]
[1724899720666,0.40081757,2531.7,2531.4,3.2078]
[1724899721475,0.39491,2531.6,2531.4,3.2078]
[1724899722173,3.42592757,2531.7,2531.1,3.581]
[1724899722374,3.42592757,2531.7,2531.1,3.2078]
[1724899722676,0.39493,2531.5,2531.1,3.2078]
[1724899722873,0.39493,2531.4,2531.1,3.2078]
[1724899723180,0.39495,2531.3,2531.1,3.2078]
[1724899723373,0.75675,2531.3,2531.1,3.2078]
[1724899723872,0.3618,2531.3,2531.1,3.2078]
[1724899724872,0.75675,2531.3,2531.1,3.2078]
[1724899725377,0.3618,2531.3,2531.1,3.2078]
[1724899726377,0.39492,2531.5,2531.1,3.2078]
[1724899728373,0.60707996,2531.5,2531.1,3.2078]
[1724899729270,0.60707996,2531.5,2531.1,3.60278]
[1724899729474,0.60707996,2531.5,2531.1,3.2078]
[1724899730188,0.00592757,2531.7,2531.3,0.39495]
[1724899730479,0.00592757,2531.7,2531.4,0.7558]
[1724899730879,0.00592757,2531.7,2531.4,3.9636]
[1724899731779,0.00592757,2531.7,2531.5,0.39491]
[1724899732074,0.00592757,2531.7,2531.5,0.74751]
[1724899733274,0.00592757,2531.7,2531.6,0.3949]
[1724899733473,0.00592757,2531.7,2531.6,4.3453]
[1724899733973,0.00592757,2531.7,2531.6,3.9504]
[1724899734175,0.00592757,2531.7,2531.6,4.3453]
[1724899736470,0.00592757,2531.7,2531.6,3.9504]
[1724899736783,0.00592757,2531.7,2531.5,0.74751]
[1724899737281,0.00592757,2531.7,2531.4,3.5849]
[1724899737282,0.39491,2531.6,2531.4,3.5849]
[1724899737480,0.39492,2531.5,2531.4,3.2078]
[1724899737684,0.39494,2531.4,2531.2,4.191]
[1724899737869,0.75004,2531.4,2531.2,4.191]
[1724899738579,0.3551,2531.4,2531.2,4.191]
[1724899739382,0.56918248,2531.4,2531.2,4.191]
[1724899740379,0.96412248,2531.4,2531.2,4.191]
[1724899740580,0.39495,2531.3,2531.2,4.191]
[1724899740775,4.34535,2531.3,2531.2,4.191]
[1724899740980,0.39498,2531.2,2530.8,3.2078]
[1724899741182,0.3618,2531.1,2530.8,3.2078]
[1724899742289,3.7818,2531.1,2530.8,3.2078]
[1724899742591,3.42,2530.9,2530.5,3.2078]
[1724899742777,0.39506,2530.6,2530.5,3.2078]
[1724899743388,0.39509,2530.4,2530.3,0.00592757]
[1724899743977,1.12218,2530.5,2530.3,0.00592757]
[1724899744485,3.81505,2530.7,2530.3,0.00592757]
[1724899745278,0.39505,2530.7,2530.3,0.00592757]
[1724899745484,0.39506,2530.6,2530.3,0.00592757]
[1724899749286,0.39508,2530.5,2530.3,0.00592757]
[1724899749490,0.39509,2530.4,2530.3,0.00592757]
[1724899749691,3.42,2530.2,2529.8,4.191]
[1724899749885,3.42,2530.2,2529.5,4.3002]
[1724899749886,0.39516,2530.0,2529.5,3.9433]
[1724899750085,0.39517,2529.9,2529.5,3.9433]
[1724899750288,0.3551,2529.8,2529.5,3.9433]
[1724899750592,0.3551,2529.8,2529.5,4.33853]
[1724899750782,0.37182757,2529.9,2529.6,0.3952]
[1724899750988,0.00592757,2529.9,2529.8,3.2078]
[1724899751186,0.00592757,2529.9,2529.8,3.60298]
[1724899751388,0.00592757,2529.9,2529.8,3.2078]
[1724899751986,0.00592757,2529.9,2529.8,7.55578]
[1724899752387,0.39509,2530.5,2529.8,7.55578]
[1724899752388,0.7575,2530.5,2530.2,0.39512]
[1724899752588,0.7575,2530.5,2530.2,3.2078]
[1724899752589,1.15258,2530.5,2530.2,3.2078]
[1724899753088,0.39509,2530.4,2530.2,3.2078]
[1724899753489,1.15258,2530.5,2530.2,3.2078]
[1724899753686,0.39509,2530.4,2530.2,3.2078]
[1724899753991,0.39511,2530.3,2530.2,3.2078]
[1724899754192,0.39511,2530.3,2529.6,0.3866]
[1724899754193,0.39512,2530.2,2529.7,0.3952]
[1724899754699,0.3595,2530.1,2529.7,0.3952]
[1724899755688,0.3595,2530.1,2529.8,0.39518]
[1724899755884,0.3595,2530.1,2529.6,3.5944]
[1724899756088,0.3595,2530.1,2529.9,3.2078]
[1724899756289,0.3595,2530.1,2529.9,3.60297]
[1724899756491,0.3595,2530.1,2529.9,3.2078]
[1724899757089,0.75464,2530.1,2529.9,3.2078]
[1724899757597,0.3595,2530.1,2529.9,3.2078]
[1724899757895,0.3595,2530.1,2529.9,3.60297]
[1724899758098,0.39511,2530.3,2529.9,3.60297]
[1724899758393,0.39511,2530.3,2530.0,0.7367]
[1724899761100,0.7495,2530.4,2530.0,0.7367]
[1724899762499,0.39511,2530.3,2530.0,0.7367]
[1724899764396,0.7495,2530.4,2530.0,0.7367]
[1724899764596,0.39511,2530.3,2530.0,0.7367]
[1724899765402,0.3544,2530.4,2530.2,3.2078]
[1724899765604,0.3544,2530.4,2530.3,0.39511]
[1724899765999,0.3544,2530.4,2530.2,3.60291]
[1724899766797,0.3544,2530.4,2530.3,0.39511]
[1724899771508,0.00592757,2530.6,2530.5,0.39508]
[1724899771710,0.00592757,2530.6,2530.5,7.55488]
[1724899771900,0.00592757,2530.6,2530.5,7.90598]
[1724899774410,0.40098757,2530.6,2530.5,3.2078]
[1724899774818,0.3951,2530.4,2530.2,3.2078]
[1724899775714,3.81508,2530.5,2530.2,3.2078]
[1724899776302,3.81509,2530.5,2530.2,3.2078]
[1724899776507,3.42,2530.5,2530.2,3.2078]
[1724899776719,3.81508,2530.5,2530.2,3.2078]
[1724899779616,0.39509,2530.4,2530.2,3.2078]
[1724899780416,3.81509,2530.5,2530.2,3.2078]
[1724899780621,0.39509,2530.4,2530.2,3.2078]
[1724899781119,0.39511,2530.3,2530.2,3.2078]
[1724899781911,0.39513,2530.2,2529.8,7.773]
[1724899782118,0.3538,2530.1,2529.8,3.2078]
[1724899782515,0.39516,2530.0,2529.8,3.2078]
[1724899782915,0.39517,2529.9,2529.5,7.3988]
[1724899783214,0.3668,2529.8,2529.5,7.3988]
[1724899783417,0.3668,2529.8,2529.5,7.79403]
[1724899784111,0.3668,2529.8,2529.5,7.3988]
[1724899784311,0.3668,2529.8,2529.5,7.79403]
[1724899784913,0.74895,2530.1,2529.6,0.39521]
[1724899785123,0.74895,2530.1,2529.8,3.2078]
[1724899787614,0.39515,2530.0,2529.8,3.2078]
[1724899788824,0.74895,2530.1,2529.8,3.2078]
[1724899790219,0.39519,2529.8,2529.5,4.191]
[1724899790420,4.1696,2529.7,2529.5,4.191]
[1724899790627,0.3639,2529.6,2529.5,4.191]
[1724899790823,0.3639,2529.6,2529.4,0.00592757]
[1724899794823,0.75912,2529.6,2529.4,0.00592757]
[1724899795421,0.3639,2529.6,2529.4,0.00592757]
[1724899795627,0.75912,2529.6,2529.4,0.00592757]
[1724899795929,0.39523,2529.5,2529.4,0.00592757]
[1724899796631,0.75913,2529.6,2529.4,0.00592757]
[1724899797326,0.39523,2529.5,2529.4,0.00592757]
[1724899797830,0.75912,2529.6,2529.4,0.00592757]
[1724899798922,3.81523,2529.5,2529.4,0.00592757]
[1724899799449,7.76883,2529.5,2529.4,0.00592757]
[1724899800324,8.75692,2529.5,2529.4,0.00592757]
[1724899800523,0.39531,2529.1,2528.8,7.3988]
[1724899800830,0.75491,2529.0,2528.8,3.2078]
[1724899801028,0.3596,2529.0,2528.8,3.2078]
[1724899801621,0.3887,2529.1,2528.9,0.39532]
[1724899801927,0.00592757,2529.2,2529.1,0.39529]
[1724899802139,0.00592757,2529.2,2529.1,3.97429]
[1724899802431,0.00592757,2529.2,2529.1,7.92789]
[1724899806235,0.00592757,2529.2,2529.1,13.92789]
[1724899806436,0.00592757,2529.2,2529.1,7.92789]
[1724899806629,0.00592757,2529.2,2529.1,13.92789]
[1724899806820,0.00592757,2529.2,2529.1,7.92789]
[1724899807022,0.00592757,2529.2,2529.1,13.92789]
[1724899807529,0.00592757,2529.2,2529.1,7.92789]
[1724899809233,0.00592757,2529.2,2529.1,3.2078]
[1724899809431,0.40120757,2529.2,2529.1,3.2078]
[1724899811140,7.77480757,2529.2,2529.1,3.2078]
[1724899812129,3.82120757,2529.2,2529.1,3.2078]
[1724899812337,7.77480757,2529.2,2529.1,3.2078]
[1724899815932,0.3953,2529.1,2528.7,0.3893]
[1724899816228,0.3953,2529.1,2528.9,3.2078]
[1724899818830,0.39533,2528.9,2528.7,0.3893]
[1724899819037,0.39533,2528.9,2528.6,3.21372757]
[1724899819338,0.7498,2528.8,2528.6,3.21372757]
[1724899820234,7.02901757,2529.2,2528.7,0.39535]
[1724899820440,7.02900757,2529.2,2528.6,3.21372757]
[1724899820641,6.63372757,2529.2,2528.8,0.39533]
[1724899820837,6.63372757,2529.2,2528.9,0.3722]
[1724899821035,6.63372757,2529.2,2528.9,3.58]
[1724899821036,0.00592757,2529.2,2528.9,3.58]
[1724899821231,0.00592757,2529.2,2529.1,0.39529]
[1724899821641,0.00592757,2529.2,2529.1,10.34889]
[1724899822837,0.00592757,2529.2,2529.1,4.34889]
[1724899826850,0.742,2529.8,2529.1,9.9536]
[1724899827147,1.13719,2529.8,2529.5,3.2078]
[1724899827651,0.3952,2529.7,2529.5,3.2078]
[1724899827847,1.13719,2529.8,2529.5,3.2078]
[1724899828145,0.39522,2529.6,2529.5,3.2078]
[1724899828540,0.39521,2529.7,2529.5,3.2078]
[1724899829145,1.13719,2529.8,2529.5,3.2078]
[1724899829944,0.742,2529.8,2529.5,3.60303]
[1724899830453,0.742,2529.8,2529.6,0.3585]
[1724899831748,0.742,2529.8,2529.6,0.75371]
[1724899832541,1.13718,2529.8,2529.6,0.3585]
[1724899833152,1.13718,2529.8,2529.5,3.60303]
[1724899833642,1.13718,2529.8,2529.5,3.2078]
[1724899833943,0.742,2529.8,2529.5,3.2078]
[1724899834148,3.81522,2529.6,2529.5,3.2078]
[1724899834443,3.42,2529.6,2529.5,3.2078]
[1724899835741,3.81522,2529.6,2529.5,3.2078]
[1724899836138,3.81522,2529.6,2529.0,4.191]
[1724899836139,0.39528,2529.2,2529.0,4.191]
[1724899836447,0.7381,2529.1,2528.8,3.60313]
[1724899836637,0.7381,2529.1,2528.9,0.39532]
[1724899837839,0.7381,2529.1,2528.8,3.60313]
[1724899838234,0.7381,2529.1,2528.8,3.2078]
[1724899838442,1.1334,2529.1,2528.8,3.2078]
[1724899838739,0.7381,2529.1,2528.8,3.60314]
[1724899839150,0.7381,2529.1,2528.8,3.2078]
[1724899840144,1.1334,2529.1,2528.7,3.98175]
[1724899840451,1.1334,2529.1,2528.7,3.5864]
[1724899840746,0.7381,2529.1,2528.7,3.98175]
[1724899840943,1.13339,2529.1,2528.7,3.98175]
[1724899842248,0.7381,2529.1,2528.8,0.39534]
[1724899843147,0.3742,2529.1,2528.7,3.5864]
[1724899843351,0.366,2529.4,2528.7,7.5408]
[1724899843550,0.3571,2529.5,2529.3,3.2078]
[1724899843855,0.75234,2529.5,2529.3,3.2078]
[1724899844743,0.75234,2529.5,2529.1,0.39528]
[1724899847054,0.3571,2529.5,2529.0,3.2078]
[1724899847561,0.3571,2529.5,2529.1,0.39528]
[1724899847856,0.75233,2529.5,2529.1,0.39528]
[1724899848056,0.39525,2529.4,2529.1,0.39528]
[1724899848251,0.75234,2529.5,2529.1,0.39528]
[1724899850055,0.75234,2529.5,2529.0,3.6031]
[1724899850357,0.3571,2529.5,2529.0,3.2078]
[1724899850559,0.39527,2529.3,2529.0,3.2078]
[1724899850858,0.3664,2529.2,2529.0,3.2078]
[1724899851964,0.3664,2529.2,2528.9,0.39532]
[1724899852353,0.3664,2529.2,2529.0,3.2078]
[1724899853956,0.3668,2529.1,2529.0,3.2078]
[1724899854758,0.3668,2529.1,2528.9,3.60312]
[1724899856362,0.3668,2529.1,2528.9,3.2078]
[1724899856562,0.3668,2529.1,2528.9,3.60311]
[1724899856757,0.76168,2529.2,2529.0,0.3614]
[1724899859251,0.39529,2529.1,2528.9,3.60312]
[1724899859864,0.76169,2529.2,2528.9,3.60312]
[1724899860366,0.3664,2529.2,2529.0,0.39531]
[1724899860560,0.76168,2529.2,2528.9,3.60312]
[1724899861358,0.3664,2529.2,2528.9,3.2078]
[1724899861658,3.81531,2529.1,2528.9,3.2078]
[1724899861858,4.17711,2529.1,2528.9,3.2078]
[1724899862657,0.77631,2529.0,2528.9,3.2078]
[1724899862860,0.381,2529.0,2528.9,3.2078]
[1724899866472,4.3354,2529.0,2528.6,4.19692757]
[1724899866661,3.42,2528.8,2528.6,4.59229757]
[1724899866979,3.42,2528.8,2528.6,4.19692757]
[1724899867367,3.42,2528.8,2528.6,4.59229757]
[1724899867763,3.81534,2528.8,2528.6,4.19692757]
[1724899867966,3.81534,2528.8,2528.6,0.00592757]
[1724899868166,0.77436,2528.7,2528.6,0.00592757]
[1724899868369,3.42,2528.8,2528.6,0.40129757]
[1724899868673,0.381,2529.0,2528.9,0.39532]
[1724899869173,7.164,2529.2,2528.9,0.39532]
[1724899869373,7.55928,2529.2,2528.9,0.39532]
[1724899869569,7.55928,2529.2,2528.9,0.76932]
[1724899869964,3.799,2529.2,2529.1,0.39529]
[1724899870170,0.39526,2529.3,2529.0,0.7694]
[1724899870372,3.42,2529.2,2528.9,0.76932]
[1724899870772,0.3744,2529.1,2528.9,0.76932]
[1724899871767,3.42,2529.0,2528.7,0.7485]
[1724899872074,3.42,2529.0,2528.6,0.78139757]
[1724899872075,3.42,2528.8,2528.6,0.78139757]
[1724899873674,3.42,2528.8,2528.6,0.38602757]
[1724899873874,3.42,2528.8,2528.6,0.78139757]
[1724899874671,0.3775,2528.9,2528.7,0.39536]
[1724899874872,3.42,2529.0,2528.7,0.77346]
[1724899875075,3.81531,2529.0,2528.7,0.77346]
[1724899876376,10.12678,2530.1,2529.1,0.39529]
[1724899876377,0.98798,2529.8,2529.1,0.39529]
[1724899876577,3.98095,2529.4,2529.1,0.39528]
[1724899876777,3.98095,2529.4,2529.2,0.7564]
[1724899877182,3.5857,2529.4,2529.2,1.15168]
[1724899877479,3.98095,2529.4,2529.2,1.15168]
[1724899877680,0.3779,2529.4,2529.2,0.7564]
[1724899877871,0.3627,2529.8,2529.5,0.39522]
[1724899878074,4.5333,2529.8,2529.5,3.2078]
[1724899878271,3.81522,2529.6,2529.5,3.2078]
[1724899878680,0.39525,2529.4,2529.1,7.3988]
[1724899878977,3.81525,2529.4,2529.1,7.3988]
[1724899879381,0.3723,2529.3,2529.1,7.3988]
[1724899879688,0.3723,2529.3,2529.1,7.7501]
[1724899880072,3.42,2529.6,2529.2,3.9536]
[1724899880284,3.42,2529.6,2529.4,0.39524]
[1724899881268,3.42,2529.6,2529.4,3.60304]
[1724899881574,3.7923,2529.8,2529.4,3.2078]
[1724899881771,3.42,2529.8,2529.7,0.3952]
[1724899881971,3.42,2529.8,2529.6,0.39521]
[1724899884979,3.42,2529.8,2529.4,3.2078]
[1724899884980,0.39522,2529.6,2529.4,3.2078]
[1724899885184,0.7318,2529.5,2529.4,3.2078]
[1724899885579,0.7318,2529.5,2529.4,3.60305]
[1724899886180,0.3611,2529.5,2529.4,3.60305]
[1724899886992,0.00592757,2529.9,2529.8,0.39518]
[1724899887190,0.00592757,2529.9,2529.6,0.39521]
[1724899887381,3.81519,2529.8,2529.5,1.13473]
[1724899887785,0.39521,2529.7,2529.4,3.2078]
[1724899887986,4.17002,2529.6,2529.4,3.2078]
[1724899888182,0.39523,2529.5,2529.4,3.2078]
[1724899888386,4.52312,2529.6,2529.4,3.2078]
[1724899888586,4.1279,2529.6,2529.4,3.2078]
[1724899888984,3.7731,2529.6,2529.4,3.2078]
[1724899889685,3.7731,2529.6,2529.4,3.60305]
[1724899890086,3.7731,2529.6,2529.4,3.2078]
[1724899893296,3.7731,2529.6,2529.4,3.60304]
[1724899894993,3.7731,2529.6,2529.4,3.2078]
[1724899895492,3.7731,2529.6,2529.4,3.60304]
[1724899895898,3.7731,2529.6,2529.4,0.39524]
[1724899896095,3.7731,2529.6,2529.4,3.60304]
[1724899896299,3.7731,2529.6,2529.4,3.2078]
[1724899898895,3.7731,2529.6,2529.3,3.96215]
[1724899899897,3.7731,2529.6,2529.3,0.75435]
[1724899900109,3.7731,2529.6,2529.3,3.96215]
[1724899901109,3.42,2529.4,2529.3,3.2078]
[1724899901402,0.39526,2529.3,2529.1,4.191]
[1724899901598,3.42,2529.2,2529.1,4.191]
[1724899901904,0.7504,2529.2,2529.0,3.6031]
[1724899902100,2.1704,2529.2,2529.0,3.6031]
[1724899902301,2.1704,2529.2,2529.1,0.39529]
[1724899903990,0.7504,2529.2,2529.1,0.39529]
[1724899904790,0.7504,2529.2,2529.0,3.6031]
[1724899909308,0.7504,2529.2,2529.0,3.2078]
[1724899910706,0.7504,2529.2,2529.0,3.60311]
[1724899911304,0.7504,2529.2,2529.0,3.2078]
[1724899911906,1.14568,2529.2,2529.0,3.2078]
[1724899912499,3.81529,2529.1,2529.0,3.2078]
[1724899912901,7.76969,2529.1,2529.0,3.2078]
[1724899914301,0.39533,2528.9,2528.7,4.191]
[1724899914496,0.3725,2528.8,2528.7,4.191]
[1724899914704,0.39532,2529.0,2528.7,4.191]
[1724899914899,0.39532,2529.0,2528.7,4.5762]
[1724899915812,4.1878,2529.1,2528.7,4.97155]
[1724899916000,4.1878,2529.1,2528.7,0.78055]
[1724899916405,4.1878,2529.1,2528.9,3.2078]
[1724899916711,4.39563334,2529.1,2528.9,3.2078]
[1724899917010,0.39531,2529.0,2528.9,3.2078]
[1724899917312,4.39563334,2529.1,2528.9,3.2078]
[1724899920011,0.39531,2529.0,2528.9,3.2078]
[1724899920610,4.39563334,2529.1,2528.9,3.2078]
[1724899921010,0.39531,2529.0,2528.9,3.2078]
[1724899923411,0.39533,2528.9,2528.6,3.60909757]
[1724899923614,3.81533,2528.9,2528.6,3.60909757]
[1724899923808,0.3717,2528.8,2528.6,3.60909757]
[1724899924516,0.3717,2528.8,2528.6,3.21372757]
[1724899925221,3.81536,2528.7,2528.6,0.00592757]
[1724899925512,4.55236,2528.7,2528.6,0.00592757]
[1724899926016,1.42,2528.7,2528.6,0.00592757]
[1724899927517,0.737,2529.0,2528.6,3.21372757]
[1724899927725,1.42,2528.9,2528.7,1.1082]
[1724899928614,1.7999,2528.9,2528.7,1.1082]
[1724899929011,0.39536,2528.7,2528.6,3.21372757]
[1724899929321,0.39536,2528.7,2528.6,0.00592757]
[1724899930011,4.34976,2528.7,2528.6,0.00592757]
[1724899932106,0.39536,2528.7,2528.6,0.00592757]
[1724899932609,1.81535,2528.8,2528.6,0.00592757]
[1724899934218,0.39536,2528.7,2528.6,0.00592757]
[1724899935313,4.34976,2528.7,2528.6,0.00592757]
[1724899935615,0.39536,2528.7,2528.6,0.00592757]
[1724899936120,4.34976,2528.7,2528.6,0.00592757]
[1724899936321,0.39536,2528.7,2528.6,0.00592757]
[1724899938920,4.34976,2528.7,2528.6,0.00592757]
[1724899939125,0.39536,2528.7,2528.6,0.00592757]
[1724899939326,4.34976,2528.7,2528.6,0.00592757]
[1724899939616,0.39536,2528.7,2528.6,0.00592757]
[1724899939823,1.42,2528.7,2528.6,0.00592757]
[1724899940920,1.43590746,2528.7,2528.6,0.00592757]
[1724899941811,1.83126746,2528.7,2528.6,0.00592757]
[1724899944424,1.8312721,2528.7,2528.6,0.00592757]
[1724899944628,1.83127211,2528.7,2528.6,0.00592757]
[1724899945926,0.01591211,2528.7,2528.6,3.96032757]
[1724899946128,1.42,2528.7,2528.6,3.96032757]
[1724899946317,0.01591211,2528.7,2528.6,7.93419757]
[1724899946517,1.42,2529.2,2529.0,0.3953]
[1724899946720,0.01589634,2529.1,2529.0,0.3953]
[1724899946927,0.01589634,2529.1,2529.0,4.3489]
[1724899947231,0.3769,2529.3,2529.2,0.39526]
[1724899947232,1.42,2529.3,2529.2,0.39526]
[1724899947426,1.43588902,2529.3,2529.2,7.55666]
[1724899947725,1.42,2529.5,2529.3,0.39525]
[1724899947925,1.42,2529.5,2529.4,0.3606]
[1724899950026,3.42,2529.5,2529.4,0.3606]
[1724899951518,3.42,2529.5,2529.4,0.75585]
[1724899951721,0.3769,2529.7,2529.6,0.39521]
[1724899951722,3.42,2529.7,2529.6,0.39521]
[1724899951921,3.5918,2530.0,2529.7,0.39519]
[1724899951922,7.0118,2530.0,2529.7,0.39519]
[1724899952826,3.804,2530.0,2529.7,0.39519]
[1724899953724,4.19916,2530.0,2529.6,0.39521]
[1724899955123,3.804,2530.0,2529.6,0.39521]
[1724899956526,3.42,2529.8,2529.5,3.60302]
[1724899957630,0.40109757,2529.9,2529.5,3.2078]
[1724899957631,3.42,2529.6,2529.5,3.2078]
[1724899957821,3.81522,2529.6,2529.5,3.2078]
[1724899958428,3.42,2529.6,2529.5,3.2078]
[1724899959123,3.42,2529.6,2529.3,4.191]
[1724899962133,0.352,2529.5,2529.3,4.191]
[1724899963131,3.42,2529.6,2529.3,4.191]
[1724899963338,3.42,2529.6,2529.3,4.58625]
[1724899963633,3.42,2529.6,2529.3,0.39525]
[1724899964336,3.42,2529.6,2529.2,4.32967]
[1724899964337,3.81522,2529.6,2529.2,4.32967]
[1724899964637,3.81522,2529.6,2529.2,3.5731]
[1724899965036,3.42,2529.6,2529.2,3.96838]
[1724899966033,3.81522,2529.6,2529.2,3.96838]
[1724899968338,0.58975413,2529.7,2529.2,3.96838]
[1724899968339,0.3808,2529.7,2529.5,0.39523]
[1724899968737,0.3808,2529.7,2529.6,3.60302]
[1724899968940,0.00592757,2529.9,2529.7,0.3952]
[1724899969135,0.00592757,2529.9,2529.8,0.39518]
[1724899969641,0.00592757,2529.9,2529.8,4.34798]
[1724899973137,0.00592757,2529.9,2529.8,10.34798]
[1724899973337,3.42,2530.8,2530.0,0.98787]
[1724899973639,0.01585772,2530.7,2530.6,0.39506]
[1724899974044,0.01585772,2530.7,2530.6,4.34626]
[1724899974536,3.42,2530.8,2530.6,4.34626]
[1724899974737,0.01585195,2530.7,2530.6,0.39506]
[1724899975245,0.01585195,2530.7,2530.6,4.34626]
[1724899978841,3.42,2530.8,2530.7,0.39504]
[1724899979045,3.42,2530.8,2530.7,4.34624]
[1724899980244,3.42,2530.8,2530.4,0.00592757]
[1724899980245,3.81503,2530.8,2530.4,0.00592757]
[1724899980547,0.3696,2530.7,2530.4,0.00592757]
[1724899980747,3.42,2530.8,2530.4,0.00592757]
[1724899981044,3.42,2530.8,2530.6,0.39505]
[1724899981546,3.81504,2530.8,2530.5,0.39507]
[1724899982047,3.81507,2530.6,2530.4,0.00592757]
[1724899982249,1.12688,2530.5,2530.4,0.00592757]
[1724899982636,0.7318,2530.5,2530.4,0.00592757]
[1724899983651,1.1101,2530.5,2530.4,0.00592757]
[1724899984557,1.1101,2530.5,2529.8,6.858]
[1724899984558,0.98773,2530.4,2529.7,3.2078]
[1724899984746,3.42,2529.8,2529.7,3.2078]
[1724899985543,4.1448,2529.8,2529.7,3.2078]
[1724899985956,4.1448,2529.8,2529.7,3.603]
[1724899986156,4.1448,2529.8,2529.7,3.2078]
[1724899987253,3.7719,2529.8,2529.7,3.603]
[1724899987556,3.42,2530.1,2529.9,0.39516]
[1724899987757,3.8009,2530.1,2529.9,0.39516]
[1724899988057,4.19605,2530.1,2529.8,0.39518]
[1724899988354,4.19605,2530.1,2529.7,3.2078]
[1724899988355,3.8009,2530.1,2529.7,3.2078]
[1724899988555,3.8009,2530.1,2529.9,0.39516]
[1724899988750,3.8009,2530.1,2529.8,0.39518]
[1724899989153,3.8009,2530.1,2529.9,0.39517]
[1724899992059,3.8009,2530.1,2529.8,0.39517]
[1724899993058,3.8009,2530.1,2529.9,0.39517]
[1724899995167,4.19604,2530.1,2529.9,0.39517]
[1724899997549,0.39518,2529.9,2529.7,3.2078]
[1724899997958,0.39518,2529.9,2529.7,7.55579]
[1724899998452,0.76556,2530.0,2529.7,7.1606]
[1724899998754,0.76556,2530.0,2529.7,3.2078]